Workbook

Sheet data
A1: Month | B1: Mid-American States Index | C1: Minnesota Index
A2: 1999-01-01 | B2: 50.2 | C2: 44.1
A3: 1999-02-01 | B3: 54.8 | C3: 48.1
A4: 1999-03-01 | B4: 58.3 | C4: 50.8
A5: 1999-04-01 | B5: 58.2 | C5: 54.4
A6: 1999-05-01 | B6: 55.8 | C6: 48.7
A7: 1999-06-01 | B7: 56.5 | C7: 58.5
A8: 1999-07-01 | B8: 57.2 | C8: 51.6
A9: 1999-08-01 | B9: 53.8 | C9: 59.7
A10: 1999-09-01 | B10: 55.5 | C10: 57.3
A11: 1999-10-01 | B11: 55 | C11: 60.2
A12: 1999-11-01 | B12: 55.8 | C12: 58.7
A13: 1999-12-01 | B13: 56 | C13: 59.7
A14: 2000-01-01 | B14: 54.8 | C14: 57.2
A15: 2000-02-01 | B15: 58.8 | C15: 55.7
A16: 2000-03-01 | B16: 61.6 | C16: 53.6
A17: 2000-04-01 | B17: 61.5 | C17: 49.2
A18: 2000-05-01 | B18: 57.1 | C18: 45.4
A19: 2000-06-01 | B19: 53 | C19: 43.2
A20: 2000-07-01 | B20: 54.2 | C20: 44.7
A21: 2000-08-01 | B21: 52.5 | C21: 44.5
A22: 2000-09-01 | B22: 53.3 | C22: 59
A23: 2000-10-01 | B23: 50.2 | C23: 38.3
A24: 2000-11-01 | B24: 49.1 | C24: 49.3
A25: 2000-12-01 | B25: 49.7 | C25: 47.5
A26: 2001-01-01 | B26: 47.3 | C26: 40.3
A27: 2001-02-01 | B27: 45.8 | C27: 37
A28: 2001-03-01 | B28: 44.5 | C28: 32
A29: 2001-04-01 | B29: 44.8 | C29: 40.2
A30: 2001-05-01 | B30: 46.5 | C30: 33.5
A31: 2001-06-01 | B31: 45.3 | C31: 36.8
A32: 2001-07-01 | B32: 44.6 | C32: 32.4
A33: 2001-08-01 | B33: 45.5 | C33: 41.9
A34: 2001-09-01 | B34: 44.4 | C34: 38.5
A35: 2001-10-01 | B35: 49.1 | C35: 46.7
A36: 2001-11-01 | B36: 43.1 | C36: 41.7
A37: 2001-12-01 | B37: 43.9 | C37: 41.7
A38: 2002-01-01 | B38: 47.7 | C38: 47.1
A39: 2002-02-01 | B39: 56.2 | C39: 47.9
A40: 2002-03-01 | B40: 54 | C40: 47.8
A41: 2002-04-01 | B41: 57.5 | C41: 49.6
A42: 2002-05-01 | B42: 57.9 | C42: 52
A43: 2002-06-01 | B43: 56.8 | C43: 53.4
A44: 2002-07-01 | B44: 53.9 | C44: 47.6
A45: 2002-08-01 | B45: 51.1 | C45: 46.5
A46: 2002-09-01 | B46: 49.4 | C46: 49.5
A47: 2002-10-01 | B47: 53.1 | C47: 51
A48: 2002-11-01 | B48: 50.8 | C48: 52.4
A49: 2002-12-01 | B49: 52.5 | C49: 51.4
A50: 2003-01-01 | B50: 54.5 | C50: 53.4
A51: 2003-02-01 | B51: 53.9 | C51: 54.1
A52: 2003-03-01 | B52: 53.7 | C52: 49
A53: 2003-04-01 | B53: 53.1 | C53: 46.4
A54: 2003-05-01 | B54: 55.3 | C54: 46.6
A55: 2003-06-01 | B55: 57.3 | C55: 48.6
A56: 2003-07-01 | B56: 56 | C56: 50.8
A57: 2003-08-01 | B57: 60.2 | C57: 57
A58: 2003-09-01 | B58: 56.3 | C58: 56.9
A59: 2003-10-01 | B59: 57.9 | C59: 59.6
A60: 2003-11-01 | B60: 59.4 | C60: 56.7
A61: 2003-12-01 | B61: 55.9 | C61: 53.8
A62: 2004-01-01 | B62: 62 | C62: 58.3
A63: 2004-02-01 | B63: 64.2 | C63: 60.1
A64: 2004-03-01 | B64: 69.7 | C64: 61.6
A65: 2004-04-01 | B65: 70.3 | C65: 63.5
A66: 2004-05-01 | B66: 67.6 | C66: 65.4
A67: 2004-06-01 | B67: 68.2 | C67: 68.5
A68: 2004-07-01 | B68: 64.2 | C68: 66
A69: 2004-08-01 | B69: 61.3 | C69: 58.9
A70: 2004-09-01 | B70: 63.9 | C70: 57.9
A71: 2004-10-01 | B71: 61.6 | C71: 63
A72: 2004-11-01 | B72: 63.8 | C72: 63.8
A73: 2004-12-01 | B73: 59 | C73: 63.3
A74: 2005-01-01 | B74: 60.7 | C74: 61.5
A75: 2005-02-01 | B75: 62.3 | C75: 60.7
A76: 2005-03-01 | B76: 61.3 | C76: 56.3
A77: 2005-04-01 | B77: 58 | C77: 47.9
A78: 2005-05-01 | B78: 60.7 | C78: 50.3
A79: 2005-06-01 | B79: 59.2 | C79: 54.2
A80: 2005-07-01 | B80: 59.7 | C80: 56.6
A81: 2005-08-01 | B81: 60.4 | C81: 61.1
A82: 2005-09-01 | B82: 59.9 | C82: 61.8
A83: 2005-10-01 | B83: 58.3 | C83: 58
A84: 2005-11-01 | B84: 56.9 | C84: 55.2
A85: 2005-12-01 | B85: 56.1 | C85: 55.4
A86: 2006-01-01 | B86: 59.8 | C86: 58
A87: 2006-02-01 | B87: 59.9 | C87: 59.6
A88: 2006-03-01 | B88: 63.6 | C88: 60.9
A89: 2006-04-01 | B89: 66 | C89: 68.7
A90: 2006-05-01 | B90: 65.7 | C90: 74.8
A91: 2006-06-01 | B91: 57.9 | C91: 69.4
A92: 2006-07-01 | B92: 60.2 | C92: 60.3
A93: 2006-08-01 | B93: 56.3 | C93: 56.5
A94: 2006-09-01 | B94: 57 | C94: 57.2
A95: 2006-10-01 | B95: 55.1 | C95: 58.1
A96: 2006-11-01 | B96: 54.1 | C96: 55.5
A97: 2006-12-01 | B97: 53.8 | C97: 51.7
A98: 2007-01-01 | B98: 57.6 | C98: 50.5
A99: 2007-02-01 | B99: 58.4 | C99: 52.3
A100: 2007-03-01 | B100: 58.9 | C100: 56.3
A101: 2007-04-01 | B101: 62 | C101: 55.8
A102: 2007-05-01 | B102: 58.3 | C102: 58.9
A103: 2007-06-01 | B103: 60 | C103: 59.5
A104: 2007-07-01 | B104: 57.8 | C104: 55.5
A105: 2007-08-01 | B105: 56 | C105: 56.4
A106: 2007-09-01 | B106: 56.7 | C106: 57.1
A107: 2007-10-01 | B107: 50.1 | C107: 54.1
A108: 2007-11-01 | B108: 49.2 | C108: 50.8
A109: 2007-12-01 | B109: 55 | C109: 47.3
A110: 2008-01-01 | B110: 50.6 | C110: 46.2
A111: 2008-02-01 | B111: 49.5 | C111: 44.3
A112: 2008-03-01 | B112: 54.3 | C112: 44.8
A113: 2008-04-01 | B113: 55.5 | C113: 55.1
A114: 2008-05-01 | B114: 49.6 | C114: 51.8
A115: 2008-06-01 | B115: 50.5 | C115: 49
A116: 2008-07-01 | B116: 51.5 | C116: 50.3
A117: 2008-08-01 | B117: 51.4 | C117: 44.6
A118: 2008-09-01 | B118: 49.6 | C118: 43.4
A119: 2008-10-01 | B119: 39.9 | C119: 39.1
A120: 2008-11-01 | B120: 37.8 | C120: 33.5
A121: 2008-12-01 | B121: 33 | C121: 32.2
A122: 2009-01-01 | B122: 33.5 | C122: 35.6
A123: 2009-02-01 | B123: 34.6 | C123: 35.8
A124: 2009-03-01 | B124: 39.7 | C124: 31
A125: 2009-04-01 | B125: 42.7 | C125: 42.6
A126: 2009-05-01 | B126: 46.6 | C126: 42
A127: 2009-06-01 | B127: 49.3 | C127: 43.9
A128: 2009-07-01 | B128: 51.7 | C128: 45.2
A129: 2009-08-01 | B129: 48.4 | C129: 58
A130: 2009-09-01 | B130: 56.2 | C130: 55.4
A131: 2009-10-01 | B131: 51.8 | C131: 55.9
A132: 2009-11-01 | B132: 47.5 | C132: 57.1
A133: 2009-12-01 | B133: 50.3 | C133: 53.5
A134: 2010-01-01 | B134: 54.7 | C134: 51.4
A135: 2010-02-01 | B135: 61 | C135: 62.3
A136: 2010-03-01 | B136: 64.3 | C136: 62.5
A137: 2010-04-01 | B137: 61.7 | C137: 62.4
A138: 2010-05-01 | B138: 64.2 | C138: 64.1
A139: 2010-06-01 | B139: 62.5 | C139: 65.5
A140: 2010-07-01 | B140: 60.8 | C140: 64.4
A141: 2010-08-01 | B141: 55.8 | C141: 63.7
A142: 2010-09-01 | B142: 56.3 | C142: 58.9
A143: 2010-10-01 | B143: 52.3 | C143: 52.8
A144: 2010-11-01 | B144: 55.9 | C144: 56.2
A145: 2010-12-01 | B145: 57.5 | C145: 52
A146: 2011-01-01 | B146: 58.9 | C146: 55.2
A147: 2011-02-01 | B147: 63.2 | C147: 59.8
A148: 2011-03-01 | B148: 61.4 | C148: 67.9
A149: 2011-04-01 | B149: 57.7 | C149: 60.9
A150: 2011-05-01 | B150: 60.2 | C150: 63.2
A151: 2011-06-01 | B151: 54.9 | C151: 54.8
A152: 2011-07-01 | B152: 54.1 | C152: 57.5
A153: 2011-08-01 | B153: 52 | C153: 56.3
A154: 2011-09-01 | B154: 52.2 | C154: 55.3
A155: 2011-10-01 | B155: 49.9 | C155: 55.4
A156: 2011-11-01 | B156: 52.6 | C156: 54.7
A157: 2011-12-01 | B157: 50 | C157: 56.9
A158: 2012-01-01 | B158: 55.9 | C158: 57.5
A159: 2012-02-01 | B159: 58.4 | C159: 58.3
A160: 2012-03-01 | B160: 58.6 | C160: 56.7
A161: 2012-04-01 | B161: 60 | C161: 61
A162: 2012-05-01 | B162: 57.6 | C162: 60.2
A163: 2012-06-01 | B163: 57.2 | C163: 58.6
A164: 2012-07-01 | B164: 48.7 | C164: 45.6
A165: 2012-08-01 | B165: 49.7 | C165: 49.7
A166: 2012-09-01 | B166: 50.4 | C166: 47.2 | M166: `
A167: 2012-10-01 | B167: 46.5 | C167: 47.1
A168: 2012-11-01 | B168: 48 | C168: 48.4
A169: 2012-12-01 | B169: 46.5 | C169: 57.2
A170: 2013-01-01 | B170: 53.2 | C170: 52.6
A171: 2013-02-01 | B171: 53.1 | C171: 52
A172: 2013-03-01 | B172: 58.2 | C172: 55.2
A173: 2013-04-01 | B173: 56.8 | C173: 55.7
A174: 2013-05-01 | B174: 56.2 | C174: 55.2
A175: 2013-06-01 | B175: 55.6 | C175: 56.2
A176: 2013-07-01 | B176: 53.5 | C176: 54
A177: 2013-08-01 | B177: 53.8 | C177: 59
A178: 2013-09-01 | B178: 54.8 | C178: 57
A179: 2013-10-01 | B179: 50 | C179: 55.2
A180: 2013-11-01 | B180: 51.2 | C180: 55.7
A181: 2013-12-01 | B181: 53.2 | C181: 58.9
A182: 2014-01-01 | B182: 57.7 | C182: 57.7
A183: 2014-02-01 | B183: 57.4 | C183: 64.1
A184: 2014-03-01 | B184: 58.2 | C184: 66.1
A185: 2014-04-01 | B185: 60.4 | C185: 64.9
A186: 2014-05-01 | B186: 60.5 | C186: 67.3
A187: 2014-06-01 | B187: 60.6 | C187: 70.1
A188: 2014-07-01 | B188: 57 | C188: 66.4
A189: 2014-08-01 | B189: 57.2 | C189: 66.9
A190: 2014-09-01 | B190: 54.3 | C190: 66.3
A191: 2014-10-01 | B191: 51.8 | C191: 63.7
A192: 2014-11-01 | B192: 51.3 | C192: 58
A193: 2014-12-01 | B193: 54.4 | C193: 60.1
A194: 2015-01-01 | B194: 54.8 | C194: 64.7
A195: 2015-02-01 | B195: 57 | C195: 64.7
A196: 2015-03-01 | B196: 51.4 | C196: 50
A197: 2015-04-01 | B197: 52.7 | C197: 51.3
A198: 2015-05-01 | B198: 50.4 | C198: 51.1
A199: 2015-06-01 | B199: 53 | C199: 54.3
A200: 2015-07-01 | B200: 50.6 | C200: 54.8
... 7 more rows

Sheet work details
A2: 14. Mid-America Economic Index: Creighton University http://business.creighton.edu/economicoutlook
A4: cvcerd folder, economic indicators folder, data, folder, other_indexes folder
A5: File Name: midam_mn_bus_cond_index.xls
A7: Data is typically available by the 15th of each month
A9: -Click on “Mid-American States” in left-hand column
A10: -Click on Minnesota
A11: -Click on current year
A13: Get Minnesota number and Mid America number (for overall index)
A15: Report: Page 22
A16: Web Data Folder, other_indexes folder, cvcerd_mn-ma-bus_index_data_2010-2019.xls

Sheet mnth-mnth_03-04
A1: mn_indx | B1: jan | C1: feb | D1: mar | E1: apr | F1: may | G1: jun | H1: jul | I1: aug | J1: sep | K1: oct | L1: nov | M1: dec | N1: ytd_avg_total
A2: 2003 | B2: 53.4 | C2: 54.1 | D2: 49 | E2: 46.4 | F2: 46.6 | G2: 48.6 | H2: 50.8 | I2: 57 | J2: 56.9 | K2: 59.6 | L2: 56.7 | M2: 53.8 | N2: =AVERAGE(B2:M2) -> 52.74166667 | O2: =AVERAGE(B2:M2) -> 52.74166667
A3: 2004 | B3: 58.3 | C3: 60.1 | D3: 61.6 | E3: 63.5 | F3: 65.4 | G3: 68.5 | H3: 66 | I3: 58.9 | J3: 57.9 | K3: 63 | L3: 63.8 | M3: 63.3 | N3: 62.525 | O3: 62.525
A4: 2005 | B4: 61.5 | C4: 60.7 | D4: 56.3 | E4: 47.9 | F4: 50.3 | G4: 54.2 | H4: 56.6 | I4: 61.1 | J4: 61.8 | K4: 58 | L4: 55.2 | M4: 55.4 | N4: 56.58333333 | O4: 56.58333333
A5: 2006 | B5: 58 | C5: 59.6 | D5: 60.9 | E5: 68.7 | F5: 74.8 | G5: 69.4 | H5: 60.3 | I5: 56.5 | J5: 57.2 | K5: 58.1 | L5: 55.5 | M5: 51.7 | N5: 60.89166667 | O5: 60.89166667
A6: 2007 | B6: 50.5 | C6: 52.3 | D6: 56.3 | E6: 55.8 | F6: 58.9 | G6: 59.5 | H6: 55.5 | I6: 56.4 | J6: 57.1 | K6: 54.1 | L6: 50.8 | M6: 47.3 | N6: 54.54166667 | O6: 54.54166667
A7: 2008 | B7: 46.2 | C7: 44.3 | D7: 44.8 | E7: 55.1 | F7: 51.8 | G7: 49 | H7: 50.3 | I7: 44.6 | J7: 43.4 | K7: 39.1 | L7: 33.5 | M7: 32.2 | N7: 44.525 | O7: 44.525
A8: 2009 | B8: 35.6 | C8: 35.8 | D8: 31 | E8: 42.6 | F8: 42 | G8: 43.9 | H8: 45.2 | I8: 58 | J8: 55.4 | K8: 55.9 | L8: 57.1 | M8: 53.5 | N8: =AVERAGE(B8:M8) -> 46.33333333 | O8: 46.33333333
A9: 2010 | B9: 51.4 | C9: 62.3 | D9: 62.5 | E9: 62.4 | F9: 64.1 | G9: 65.5 | H9: 64.4 | I9: 63.7 | J9: 58.9 | K9: 52.8 | L9: 56.2 | M9: 52 | N9: =AVERAGE(B9:L9) -> 60.38181818 | O9: 59.68333333
A10: 2011 | B10: 55.2 | C10: 59.8 | D10: 67.9 | E10: 60.9 | F10: 63.2 | G10: 54.8 | H10: 57.5 | I10: 56.3 | J10: 55.3 | K10: 55.4 | L10: 54.7 | M10: 56.9 | N10: =AVERAGE(B10:M10) -> 58.15833333 | O10: =AVERAGE(B10:M10) -> 58.15833333
A11: 2012 | B11: 57.5 | C11: 58.3 | D11: 56.7 | E11: 61 | F11: 60.2 | G11: 58.6 | H11: 45.6 | I11: 49.7 | J11: 47.2 | K11: 47.1 | L11: 48.4 | M11: 57.2 | N11: =AVERAGE(B11:M11) -> 53.95833333 | O11: =AVERAGE(B11:M11) -> 53.95833333
A12: 2013 | B12: 52.6 | C12: 52 | D12: 55.2 | E12: 55.7 | F12: 55.2 | G12: 56.2 | H12: 54 | I12: 59 | J12: 57 | K12: 55.2 | L12: 55.7 | M12: 58.9 | N12: =AVERAGE(B12:M12) -> 55.55833333 | O12: =AVERAGE(B12:M12) -> 55.55833333
A13: 2014 | B13: 57.7 | C13: 64.1 | D13: 66.1 | E13: 64.9 | F13: 67.3 | G13: 70.1 | H13: 66.4 | I13: 66.9 | J13: 66.3 | K13: 63.7 | L13: 58 | M13: 60.1 | N13: =AVERAGE(B13:M13) -> 64.3 | O13: =AVERAGE(B13:M13) -> 64.3
A14: 2015 | B14: 64.7 | N14: =AVERAGE(B14:B14) -> 64.7 | O14: =AVERAGE(B14:M14) -> 64.7
A15: benchmark | B15: 50 | C15: 50 | D15: 50 | E15: 50 | F15: 50 | G15: 50 | H15: 50 | I15: 50 | J15: 50 | K15: 50 | L15: 50 | M15: 50
B17: jan-dec | C17: feb-jan | D17: mar-feb | E17: apr-mar | F17: may-apr | G17: jun-may | H17: jul-jun | I17: aug-jul | J17: sep-aug | K17: oct-sep | L17: nov-oct | M17: dec-nov
A18: change_04 | B18: =B3-M2 -> 4.5 | C18: =C3-B3 -> 1.8 | D18: 1.5 | E18: 1.9 | F18: 1.9 | G18: 3.1 | H18: -2.5 | I18: -7.1 | J18: -1 | K18: 5.1 | L18: 0.8 | M18: -0.5
A19: %change_04 | B19: =(B18/M2)*100 -> 8.364312268 | C19: =(C18/B3)*100 -> 3.087478559 | D19: 2.495840266 | E19: 3.084415584 | F19: 2.992125984 | G19: 4.740061162 | H19: -3.649635036 | I19: -10.75757576 | J19: -1.697792869 | K19: 8.808290155 | L19: 1.26984127 | M19: -0.7836990596
B20: jan | C20: feb | D20: mar | E20: apr | F20: may | G20: jun | H20: jul | I20: aug | J20: sep | K20: oct | L20: nov | M20: dec | N20: ytd_avg_total
A21: chg_prv_04-03 | B21: =B3-B2 -> 4.9 | C21: 6 | D21: 12.6 | E21: 17.1 | F21: 18.8 | G21: 19.9 | H21: 15.2 | I21: 1.9 | J21: 1 | K21: 3.4 | L21: 7.1 | M21: 9.5 | N21: =O3-O2 -> 9.783333333
A22: %chg_prv_04-03 | B22: =(B21/B2)*100 -> 9.176029963 | C22: 11.09057301 | D22: 25.71428571 | E22: 36.85344828 | F22: 40.34334764 | G22: 40.94650206 | H22: 29.92125984 | I22: 3.333333333 | J22: 1.757469244 | K22: 5.704697987 | L22: 12.52204586 | M22: 17.65799257 | N22: =(N21/O2)*100 -> 18.54953389
B24: jan-dec | C24: feb-jan | D24: mar-feb | E24: apr-mar | F24: may-apr | G24: jun-may | H24: jul-jun | I24: aug-jul | J24: sep-aug | K24: oct-sep | L24: nov-oct | M24: dec-nov
A25: change_05 | B25: =B4-M3 -> -1.8 | C25: =C4-B4 -> -0.8 | D25: -4.4 | E25: -8.4 | F25: 2.4 | G25: 3.9 | H25: 2.4 | I25: 4.5 | J25: 0.7 | K25: -3.8 | L25: -2.8 | M25: 0.2
A26: %change_05 | B26: =(B25/M3)*100 -> -2.843601896 | C26: =(C25/B4)*100 -> -1.300813008 | D26: -7.248764415 | E26: -14.92007105 | F26: 5.010438413 | G26: 7.753479125 | H26: 4.42804428 | I26: 7.950530035 | J26: 1.145662848 | K26: -6.148867314 | L26: -4.827586207 | M26: 0.3623188406
B27: jan | C27: feb | D27: mar | E27: apr | F27: may | G27: jun | H27: jul | I27: aug | J27: sep | K27: oct | L27: nov | M27: dec | N27: ytd_avg_total
A28: chg_prv_05-04 | B28: =B4-B3 -> 3.2 | C28: 0.6 | D28: -5.3 | E28: -15.6 | F28: -15.1 | G28: -14.3 | H28: -9.4 | I28: 2.2 | J28: 3.9 | K28: -5 | L28: -8.6 | M28: -7.9 | N28: =O4-O3 -> -5.941666667
A29: %chg_prv_05-04 | B29: =(B28/B3)*100 -> 5.488850772 | C29: 0.9983361065 | D29: -8.603896104 | E29: -24.56692913 | F29: -23.08868502 | G29: -20.87591241 | H29: -14.24242424 | I29: 3.735144312 | J29: 6.735751295 | K29: -7.936507937 | L29: -13.47962382 | M29: -12.48025276 | N29: =(N28/O3)*100 -> -9.50286552
B31: jan-dec | C31: feb-jan | D31: mar-feb | E31: apr-mar | F31: may-apr | G31: jun-may | H31: jul-jun | I31: aug-jul | J31: sep-aug | K31: oct-sep | L31: nov-oct | M31: dec-nov
A32: change_06 | B32: =B5-M4 -> 2.6 | C32: =C5-B5 -> 1.6 | D32: 1.3 | E32: 7.8 | F32: 6.1 | G32: -5.4 | H32: -9.1 | I32: -3.8 | J32: 0.7 | K32: 0.9 | L32: -2.6 | M32: -3.8
A33: %change_06 | B33: =(B32/M4)*100 -> 4.693140794 | C33: =(C32/B5)*100 -> 2.75862069 | D33: 2.181208054 | E33: 12.80788177 | F33: 8.879184862 | G33: -7.219251337 | H33: -13.11239193 | I33: -6.301824212 | J33: 1.238938053 | K33: 1.573426573 | L33: -4.475043029 | M33: -6.846846847
B34: jan | C34: feb | D34: mar | E34: apr | F34: may | G34: jun | H34: jul | I34: aug | J34: sep | K34: oct | L34: nov | M34: dec | N34: ytd_avg_total
A35: chg_prv_06-05 | B35: =B5-B4 -> -3.5 | C35: -1.1 | D35: 4.6 | E35: 20.8 | F35: 24.5 | G35: 15.2 | H35: 3.7 | I35: -4.6 | J35: -4.6 | K35: 0.1 | L35: 0.3 | M35: -3.7 | N35: =O5-O4 -> 4.308333333
A36: %chg_prv_06-05 | B36: =(B35/B4)*100 -> -5.691056911 | C36: -1.812191104 | D36: 8.170515098 | E36: 43.42379958 | F36: 48.70775348 | G36: 28.04428044 | H36: 6.537102473 | I36: -7.528641571 | J36: -7.443365696 | K36: 0.1724137931 | L36: 0.5434782609 | M36: -6.678700361 | N36: =(N35/O4)*100 -> 7.614138439
B38: jan-dec | C38: feb-jan | D38: mar-feb | E38: apr-mar | F38: may-apr | G38: jun-may | H38: jul-jun | I38: aug-jul | J38: sep-aug | K38: oct-sep | L38: nov-oct | M38: dec-nov
A39: change_07 | B39: =B6-M5 -> -1.2 | C39: =C6-B6 -> 1.8 | D39: 4 | E39: -0.5 | F39: 3.1 | G39: 0.6 | H39: -4 | I39: 0.9 | J39: 0.7 | K39: -3 | L39: -3.3 | M39: -3.5
A40: %change_07 | B40: =(B39/M5)*100 -> -2.321083172 | C40: =(C39/B6)*100 -> 3.564356436 | D40: 7.648183556 | E40: -0.8880994671 | F40: 5.555555556 | G40: 1.018675722 | H40: -6.722689076 | I40: 1.621621622 | J40: 1.241134752 | K40: -5.253940455 | L40: -6.099815157 | M40: -6.88976378
B41: jan | C41: feb | D41: mar | E41: apr | F41: may | G41: jun | H41: jul | I41: aug | J41: sep | K41: oct | L41: nov | M41: dec | N41: ytd_avg_total
A42: chg_prv_07-06 | B42: =B6-B5 -> -7.5 | C42: -7.3 | D42: -4.6 | E42: -12.9 | F42: -15.9 | G42: -9.9 | H42: -4.8 | I42: -0.1 | J42: -0.1 | K42: -4 | L42: -4.7 | M42: -4.4 | N42: =O6-O5 -> -6.35
A43: %chg_prv_07-06 | B43: =(B42/B5)*100 -> -12.93103448 | C43: -12.24832215 | D43: -7.553366174 | E43: -18.77729258 | F43: -21.25668449 | G43: -14.26512968 | H43: -7.960199005 | I43: -0.1769911504 | J43: -0.1748251748 | K43: -6.884681583 | L43: -8.468468468 | M43: -8.510638298 | N43: =(N42/O5)*100 -> -10.42835637
B45: jan-dec | C45: feb-jan | D45: mar-feb | E45: apr-mar | F45: may-apr | G45: jun-may | H45: jul-jun | I45: aug-jul | J45: sep-aug | K45: oct-sep | L45: nov-oct | M45: dec-nov
A46: change_08 | B46: =B7-M6 -> -1.1 | C46: =C7-B7 -> -1.9 | D46: 0.5 | E46: 10.3 | F46: -3.3 | G46: -2.8 | H46: 1.3 | I46: -5.7 | J46: -1.2 | K46: -4.3 | L46: -5.6 | M46: -1.3
A47: %change_08 | B47: =(B46/M6)*100 -> -2.325581395 | C47: =(C46/B7)*100 -> -4.112554113 | D47: 1.128668172 | E47: 22.99107143 | F47: -5.989110708 | G47: -5.405405405 | H47: 2.653061224 | I47: -11.33200795 | J47: -2.69058296 | K47: -9.907834101 | L47: -14.32225064 | M47: -3.880597015
B48: jan | C48: feb | D48: mar | E48: apr | F48: may | G48: jun | H48: jul | I48: aug | J48: sep | K48: oct | L48: nov | M48: dec | N48: ytd_avg_total
A49: chg_prv_08-07 | B49: =B7-B6 -> -4.3 | C49: -8 | D49: -11.5 | E49: -0.7 | F49: -7.1 | G49: -10.5 | H49: -5.2 | I49: -11.8 | J49: -13.7 | K49: -15 | L49: -17.3 | M49: -15.1 | N49: =O7-O6 -> -10.01666667
A50: %chg_prv_08-07 | B50: =(B49/B6)*100 -> -8.514851485 | C50: -15.29636711 | D50: -20.42628774 | E50: -1.254480287 | F50: -12.05432937 | G50: -17.64705882 | H50: -9.369369369 | I50: -20.92198582 | J50: -23.99299475 | K50: -27.72643253 | L50: -34.05511811 | M50: -31.92389006 | N50: =(N49/O7)*100 -> -22.49672469
B52: jan-dec | C52: feb-jan | D52: mar-feb | E52: apr-mar | F52: may-apr | G52: jun-may | H52: jul-jun | I52: aug-jul | J52: sep-aug | K52: oct-sep | L52: nov-oct | M52: dec-nov
A53: change_09 | B53: =B8-M7 -> 3.4 | C53: =C8-B8 -> 0.2 | D53: -4.8 | E53: 11.6 | F53: -0.6 | G53: 1.9 | H53: 1.3 | I53: =I8-H8 -> 12.8 | J53: =J8-I8 -> -2.6 | K53: =K8-J8 -> 0.5 | L53: =L8-K8 -> 1.2 | M53: =M8-L8 -> -3.6
A54: %change_09 | B54: =(B53/M7)*100 -> 10.55900621 | C54: =(C53/B7)*100 -> 0.4329004329 | D54: -10.83521445 | E54: 25.89285714 | F54: -1.08892922 | G54: 3.667953668 | H54: 2.653061224 | I54: 25.4473161 | J54: -5.829596413 | K54: 1.152073733 | L54: 3.069053708 | M54: -10.74626866
B55: jan | C55: feb | D55: mar | E55: apr | F55: may | G55: jun | H55: jul | I55: aug | J55: sep | K55: oct | L55: nov | M55: dec | N55: ytd_avg_total
A56: chg_prv_09-08 | B56: =B8-B7 -> -10.6 | C56: -8.5 | D56: -13.8 | E56: -12.5 | F56: -9.8 | G56: -5.1 | H56: -5.1 | I56: 13.4 | J56: 12 | K56: 16.8 | L56: 23.6 | M56: 21.3 | N56: =O8-O7 -> 1.808333333
A57: %chg_prv_09-08 | B57: =(B56/B7)*100 -> -22.94372294 | C57: -19.18735892 | D57: -30.80357143 | E57: -22.68602541 | F57: -18.91891892 | G57: -10.40816327 | H57: -10.13916501 | I57: 30.04484305 | J57: 27.64976959 | K57: 42.96675192 | L57: 70.44776119 | M57: 66.14906832 | N57: =(N56/O7)*100 -> 4.061388733
B59: jan-dec | C59: feb-jan | D59: mar-feb | E59: apr-mar | F59: may-apr | G59: jun-may | H59: jul-jun | I59: aug-jul | J59: sep-aug | K59: oct-sep | L59: nov-oct | M59: dec-nov
A60: change_10 | B60: =B9-M8 -> -2.1 | C60: =C9-B9 -> 10.9 | D60: 0.2 | E60: -0.1 | F60: 1.7 | G60: 1.4 | H60: -1.1 | I60: -0.7 | J60: -4.8 | K60: -6.1 | L60: 3.4 | M60: -4.2
A61: %change_10 | B61: =(B60/M8)*100 -> -3.925233645 | C61: =(C60/B9)*100 -> 21.20622568 | D61: 0.3210272873 | E61: -0.16 | F61: 2.724358974 | G61: 2.184087363 | H61: -1.679389313 | I61: -1.086956522 | J61: -7.535321821 | K61: -10.3565365 | L61: 6.439393939 | M61: -7.473309609
B62: jan | C62: feb | D62: mar | E62: apr | F62: may | G62: jun | H62: jul | I62: aug | J62: sep | K62: oct | L62: nov | M62: dec | N62: ytd_avg_total
A63: chg_prv_10-09 | B63: =B9-B8 -> 15.8 | C63: 26.5 | D63: 31.5 | E63: 19.8 | F63: 22.1 | G63: 21.6 | H63: =H9-H8 -> 19.2 | I63: 5.7 | J63: 3.5 | K63: -3.1 | L63: -0.9 | M63: -1.5 | N63: =O9-O8 -> 13.35
A64: %chg_prv_10-09 | B64: =(B63/B8)*100 -> 44.38202247 | C64: 74.02234637 | D64: 101.6129032 | E64: 46.47887324 | F64: 52.61904762 | G64: 49.20273349 | H64: =(H63/H8)*100 -> 42.47787611 | I64: 9.827586207 | J64: 6.317689531 | K64: -5.545617174 | L64: -1.576182137 | M64: -2.803738318 | N64: =(N63/O8)*100 -> 28.81294964
B66: jan-dec | C66: feb-jan | D66: mar-feb | E66: apr-mar | F66: may-apr | G66: jun-may | H66: jul-jun | I66: aug-jul | J66: sep-aug | K66: oct-sep | L66: nov-oct | M66: dec-nov
A67: change_11 | B67: =B10-M9 -> 3.2 | C67: =C10-B10 -> 4.6 | D67: 8.1 | E67: -7 | F67: 2.3 | G67: -8.4 | H67: 2.7 | I67: -1.2 | J67: -1 | K67: =K10-J10 -> 0.1 | L67: =L10-K10 -> -0.7 | M67: =M10-L10 -> 2.2
A68: %change_11 | B68: =(B67/M9)*100 -> 6.153846154 | C68: =(C67/B10)*100 -> 8.333333333 | D68: 13.5451505 | E68: -10.30927835 | F68: 3.776683087 | G68: -13.29113924 | H68: 4.927007299 | I68: -2.086956522 | J68: -1.776198934 | K68: 0.1808318264 | L68: -1.263537906 | M68: 4.021937843
B69: jan | C69: feb | D69: mar | E69: apr | F69: may | G69: jun | H69: jul | I69: aug | J69: sep | K69: oct | L69: nov | M69: dec | N69: ytd_avg_total
A70: chg_prv_11-10 | B70: =B10-B9 -> 3.8 | C70: -2.5 | D70: 5.4 | E70: -1.5 | F70: -0.9 | G70: -10.7 | H70: -6.9 | I70: -7.4 | J70: =J10-J9 -> -3.6 | K70: =K10-K9 -> 2.6 | L70: =L10-L9 -> -1.5 | M70: =M10-M9 -> 4.9 | N70: =O10-O9 -> -1.525
A71: %chg_prv_11-10 | B71: =(B70/B9)*100 -> 7.392996109 | C71: -4.012841091 | D71: 8.64 | E71: -2.403846154 | F71: -1.404056162 | G71: -16.33587786 | H71: =(H70/H9)*100 -> -10.71428571 | I71: -11.61695447 | J71: -6.112054329 | K71: 4.924242424 | L71: -2.669039146 | M71: 9.423076923 | N71: =(N70/O9)*100 -> -2.555152192
B73: jan-dec | C73: feb-jan | D73: mar-feb | E73: apr-mar | F73: may-apr | G73: jun-may | H73: jul-jun | I73: aug-jul | J73: sep-aug | K73: oct-sep | L73: nov-oct | M73: dec-nov
A74: change_12 | B74: =B11-M10 -> 0.6 | C74: =C11-B11 -> 0.8 | D74: =D11-C11 -> -1.6 | E74: =E11-D11 -> 4.3 | F74: =F11-E11 -> -0.8 | G74: =G11-F11 -> -1.6 | H74: -13 | I74: 4.1 | J74: -2.5 | K74: -0.1 | L74: =L11-K11 -> 1.3 | M74: =M11-L11 -> 8.8
A75: %change_12 | B75: =(B74/M10)*100 -> 1.054481547 | C75: =(C74/B11)*100 -> 1.391304348 | D75: =(D74/C11)*100 -> -2.744425386 | E75: =(E74/D11)*100 -> 7.58377425 | F75: =(F74/E11)*100 -> -1.31147541 | G75: =(G74/F11)*100 -> -2.657807309 | H75: -22.18430034 | I75: 8.99122807 | J75: -5.030181087 | K75: -0.2118644068 | L75: =(L74/K11)*100 -> 2.760084926 | M75: =(M74/L11)*100 -> 18.18181818
B76: jan | C76: feb | D76: mar | E76: apr | F76: may | G76: jun | H76: jul | I76: aug | J76: sep | K76: oct | L76: nov | M76: dec | N76: ytd_avg_total
A77: chg_prv_12-11 | B77: =B11-B10 -> 2.3 | C77: =C11-C10 -> -1.5 | D77: =D11-D10 -> -11.2 | E77: =E11-E10 -> 0.1 | F77: =F11-F10 -> -3 | G77: =G11-G10 -> 3.8 | H77: -11.9 | I77: =I11-I10 -> -6.6 | J77: -8.1 | K77: =K11-K10 -> -8.3 | L77: -6.3 | M77: 0.3 | N77: =O11-O10 -> -4.2
A78: %chg_prv_12-11 | B78: =(B77/B10)*100 -> 4.166666667 | C78: =(C77/C10)*100 -> -2.508361204 | D78: =(D77/D10)*100 -> -16.49484536 | E78: =(E77/E10)*100 -> 0.1642036125 | F78: =(F77/F10)*100 -> -4.746835443 | G78: =(G77/G10)*100 -> 6.934306569 | H78: -20.69565217 | I78: =(I77/I10)*100 -> -11.72291297 | J78: -14.64737794 | K78: =(K77/K10)*100 -> -14.98194946 | L78: -11.51736746 | M78: 0.5272407733 | N78: =(N77/O10)*100 -> -7.221664995
B80: jan-dec | C80: feb-jan | D80: mar-feb | E80: apr-mar | F80: may-apr | G80: jun-may | H80: jul-jun | I80: aug-jul | J80: sep-aug | K80: oct-sep | L80: nov-oct | M80: dec-nov
A81: change_13 | B81: =B12-M11 -> -4.6 | C81: =C12-B12 -> -0.6 | D81: 3.2 | E81: 0.5 | F81: -0.5 | G81: 1 | H81: -2.2 | I81: =I12-H12 -> 5 | J81: -2 | K81: -1.8 | L81: 0.5 | M81: 3.2
A82: %change_13 | B82: =(B81/M11)*100 -> -8.041958042 | C82: =(C81/B12)*100 -> -1.140684411 | D82: 6.153846154 | E82: 0.9057971014 | F82: -0.8976660682 | G82: 1.811594203 | H82: -3.914590747 | I82: 9.259259259 | J82: -3.389830508 | K82: -3.157894737 | L82: 0.9057971014 | M82: 5.745062837
B83: jan | C83: feb | D83: mar | E83: apr | F83: may | G83: jun | H83: jul | I83: aug | J83: sep | K83: oct | L83: nov | M83: dec | N83: ytd_avg_total
A84: chg_prv_13-12 | B84: =B12-B11 -> -4.9 | C84: -6.3 | D84: -1.5 | E84: -5.3 | F84: -5 | G84: -2.4 | H84: =H12-H11 -> 8.4 | I84: 9.3 | J84: =J12-J11 -> 9.8 | K84: 8.1 | L84: =L12-L11 -> 7.3 | M84: 1.7 | N84: =O12-O11 -> 1.6
A85: %chg_prv_13-12 | B85: =(B84/B11)*100 -> -8.52173913 | C85: -10.80617496 | D85: -2.645502646 | E85: -8.68852459 | F85: -8.305647841 | G85: -4.09556314 | H85: 18.42105263 | I85: =(I84/I11)*100 -> 18.71227364 | J85: 20.76271186 | K85: =(K84/K11)*100 -> 17.19745223 | L85: 15.08264463 | M85: =(M84/M11)*100 -> 2.972027972 | N85: =(N84/O11)*100 -> 2.965250965
B87: jan-dec | C87: feb-jan | D87: mar-feb | E87: apr-mar | F87: may-apr | G87: jun-may | H87: jul-jun | I87: aug-jul | J87: sep-aug | K87: oct-sep | L87: nov-oct | M87: dec-nov
A88: change_14 | B88: =B13-M12 -> -1.2 | C88: =C13-B13 -> 6.4 | D88: 2 | E88: -1.2 | F88: 2.4 | G88: 2.8 | H88: -3.7 | I88: =I13-H13 -> 0.5 | J88: -0.6 | K88: -2.6 | L88: -5.7 | M88: 2.1
A89: %change_14 | B89: =(B88/M12)*100 -> -2.037351443 | C89: =(C88/B13)*100 -> 11.09185442 | D89: 3.120124805 | E89: -1.815431165 | F89: 3.697996918 | G89: 4.160475483 | H89: -5.278174037 | I89: 0.7530120482 | J89: -0.8968609865 | K89: -3.921568627 | L89: -8.948194662 | M89: 3.620689655
B90: jan | C90: feb | D90: mar | E90: apr | F90: may | G90: jun | H90: jul | I90: aug | J90: sep | K90: oct | L90: nov | M90: dec | N90: ytd_avg_total
A91: chg_prv_14-13 | B91: =B13-B12 -> 5.1 | C91: 12.1 | D91: 10.9 | E91: 9.2 | F91: 12.1 | G91: 13.9 | H91: =H13-H12 -> 12.4 | I91: 7.9 | J91: =J13-J12 -> 9.3 | K91: 8.5 | L91: =L13-L12 -> 2.3 | M91: 1.2 | N91: =O13-O12 -> 8.741666667
A92: %chg_prv_14-13 | B92: =(B91/B12)*100 -> 9.69581749 | C92: 23.26923077 | D92: 19.74637681 | E92: 16.51705566 | F92: 21.92028986 | G92: 24.73309609 | H92: =(H91/H12)*100 -> 22.96296296 | I92: 13.38983051 | J92: =(J91/J12)*100 -> 16.31578947 | K92: 15.39855072 | L92: =(L91/L12)*100 -> 4.129263914 | M92: 2.037351443 | N92: =(N91/O12)*100 -> 15.73421329
B94: jan-dec | C94: feb-jan | D94: mar-feb | E94: apr-mar | F94: may-apr | G94: jun-may | H94: jul-jun | I94: aug-jul | J94: sep-aug | K94: oct-sep | L94: nov-oct | M94: dec-nov
A95: change_15 | B95: =B14-M13 -> 4.6
A96: %change_15 | B96: =(B95/M13)*100 -> 7.65391015
B97: jan | C97: feb | D97: mar | E97: apr | F97: may | G97: jun | H97: jul | I97: aug | J97: sep | K97: oct | L97: nov | M97: dec | N97: ytd_avg_total
A98: chg_prv_15-14 | B98: =B14-B13 -> 7 | N98: =N14-N13 -> 0.4
A99: %chg_prv_15-14 | B99: =(B98/B13) -> 0.1213171577 | N99: =(N98/N13)*100 -> 0.6220839813

Sheet graphs

Sheet Sheet1 (hidden)
